bitfinex/quotes_ETHUSD_20220305
["timestamp","ask_amount","ask_price","bid_price","bid_amount"]
[1646523251035,1.1845,2660.4,2659.6,0.00450622]
[1646523251236,2.11399401,2660.4,2659.6,0.00450622]
[1646523251442,1.1845,2660.4,2659.9,0.89579974]
[1646523251636,2.7755,2660.7,2659.9,0.88960256]
[1646523252837,1.14339726,2660.5,2659.9,0.88960256]
[1646523253838,1.14339726,2660.5,2659.8,0.01376428]
[1646523254276,1.14339726,2660.5,2659.8,0.00096]
[1646523255077,1.14339726,2660.5,2659.7,2.09181575]
[1646523255682,1.14339726,2660.5,2660.0,0.01079809]
[1646523255886,2.7755,2660.7,2660.0,0.01079809]
[1646523259831,2.7755,2660.7,2659.8,0.01334787]
[1646523260431,2.7755,2660.7,2659.8,0.00096]
[1646523260632,1.00195631,2660.5,2659.8,0.00096]
[1646523262180,3.5,2660.4,2659.8,0.00096]
[1646523262479,3.5,2660.4,2659.6,0.01552407]
[1646523262678,3.5,2660.4,2659.6,0.01241921]
[1646523262879,3.5,2660.4,2659.5,0.00096]
[1646523263081,1.54101285,2660.3,2659.5,0.00096]
[1646523263280,1.54101285,2660.3,2659.6,0.01552416]
[1646523263281,3.5,2660.2,2659.6,0.01552416]
[1646523263480,0.92311995,2659.7,2659.6,0.01552416]
[1646523263683,4.97976596,2660.2,2659.6,0.01552416]
[1646523263879,4.97976596,2660.2,2659.2,1.17789294]
[1646523263880,4.97976596,2660.2,2659.3,0.00096]
[1646523264279,4.97976596,2660.2,2659.5,0.00310422]
[1646523264482,4.92976596,2660.2,2659.5,0.00310422]
[1646523264681,0.87936527,2659.8,2659.5,0.00310422]
[1646523265180,0.87936527,2659.8,2659.3,0.00096]
[1646523265439,0.87936527,2659.8,2659.5,0.00310387]
[1646523266432,0.87936527,2659.8,2659.3,0.00096]
[1646523266632,4.97976596,2660.2,2659.5,0.00310387]
[1646523266834,1.1768,2660.3,2659.5,0.00310387]
[1646523267133,1.1768,2660.3,2659.5,0.00406387]
[1646523267533,1.1768,2660.3,2659.5,0.00096]
[1646523267733,1.23109033,2660.2,2659.6,1.15211689]
[1646523267933,1.23109033,2660.2,2659.6,1.15522089]
[1646523268734,1.23109033,2660.2,2659.6,1.15211689]
[1646523268940,1.23109033,2660.2,2659.6,1.15522094]
[1646523269980,1.1768,2660.3,2659.6,1.15211689]
[1646523270181,1.1768,2660.3,2659.6,1.15522094]
[1646523270987,2.17856443,2660.3,2659.6,1.15522094]
[1646523271286,2.17856443,2660.3,2659.6,1.15211689]
[1646523271491,2.17856443,2660.3,2659.6,1.15522883]
[1646523272088,1.11078287,2659.9,2659.5,0.00096]
[1646523272290,1.11078287,2659.9,2659.4,0.01108164]
[1646523272291,5.58103838,2659.8,2659.4,0.01108164]
[1646523272489,12.99103838,2659.7,2659.4,0.01108164]
[1646523272692,5.2159,2659.8,2659.2,0.03858554]
[1646523272693,0.03324491,2659.3,2659.2,0.01116718]
[1646523272943,2.88628329,2659.3,2659.2,6.718e-05]
[1646523273139,18.91301058,2659.3,2659.2,6.718e-05]
[1646523273737,19.91301058,2659.3,2659.2,6.718e-05]
[1646523277987,19.91301058,2659.3,2659.1,0.00354997]
[1646523278185,14.95,2659.2,2659.1,0.00354997]
[1646523278386,15.49,2659.2,2659.0,0.01115488]
[1646523278588,14.95,2659.1,2659.0,0.01115488]
[1646523278786,16.49,2659.1,2659.0,0.01115488]
[1646523283842,16.678,2659.1,2659.0,0.01115488]
[1646523285482,16.49,2659.1,2659.0,0.01115488]
[1646523286285,16.49087738,2659.1,2659.0,0.01115488]
[1646523288330,15.49087738,2659.1,2659.0,0.01115488]
[1646523288531,0.00087738,2659.1,2659.0,0.01115488]
[1646523291137,1.1099722,2659.3,2659.0,0.01115488]
[1646523291537,12.5599722,2659.3,2659.0,0.01115488]
[1646523291789,12.5599722,2659.3,2659.0,0.01427928]
[1646523291989,1.1099722,2659.3,2659.0,0.01427928]
[1646523292791,1.1099722,2659.3,2659.0,0.01115488]
[1646523292989,14.95,2659.2,2659.0,0.01427704]
[1646523293595,14.95,2659.1,2659.0,0.01427704]
[1646523293797,14.95,2659.1,2658.7,0.01099796]
[1646523293798,0.00740807,2658.8,2658.7,0.01099796]
[1646523293998,0.00740807,2658.8,2658.7,0.06384436]
[1646523294200,11.45740807,2658.8,2658.7,0.06384436]
[1646523294396,14.95740807,2658.8,2658.7,0.06384436]
[1646523294900,11.45740807,2658.8,2658.7,0.06384436]
[1646523295096,16.05928268,2658.8,2658.7,0.06384436]
[1646523297038,12.55928268,2658.8,2658.7,0.06384436]
[1646523298842,12.55928268,2658.8,2658.7,0.0528464]
[1646523299041,12.55928268,2658.8,2657.8,0.019144]
[1646523299042,12.55928268,2658.8,2658.6,0.00188517]
[1646523299286,1.04132215,2658.7,2658.6,0.00188517]
[1646523299886,1.04132215,2658.7,2658.0,0.15907601]
[1646523300090,0.00740807,2658.8,2658.0,0.15907601]
[1646523300286,0.00740807,2658.8,2658.5,0.00188524]
[1646523301092,0.9445233,2658.7,2658.5,0.00188524]
[1646523301390,0.9445233,2658.7,2658.5,0.01262909]
[1646523302391,0.9445233,2658.7,2658.5,0.00907601]
[1646523302594,0.9445233,2658.7,2658.5,0.01262913]
[1646523303334,0.9445233,2658.7,2658.5,0.02743041]
[1646523303537,0.9445233,2658.7,2658.5,0.02387729]
[1646523303933,0.9445233,2658.7,2658.5,0.02743041]
[1646523304834,0.9445233,2658.7,2658.5,0.02387729]
[1646523305033,0.9445233,2658.7,2658.5,0.02743041]
[1646523306038,0.9445233,2658.7,2658.5,0.02387729]
[1646523306238,0.9445233,2658.7,2658.5,0.01480128]
[1646523310012,0.9445233,2658.7,2658.5,0.01834017]
[1646523310845,0.9445233,2658.7,2658.5,0.01480128]
[1646523311042,0.9445233,2658.7,2658.5,0.01834017]
[1646523312040,0.9445233,2658.7,2658.5,0.01480128]
[1646523312239,0.9445233,2658.7,2658.5,0.01834017]
[1646523313239,0.9445233,2658.7,2658.5,0.01480128]
[1646523313441,0.00828227,2658.8,2658.5,0.0181012]
[1646523314486,1.09887067,2658.8,2658.5,0.01480128]
[1646523314684,1.09887067,2658.8,2658.5,0.017995]
[1646523315693,1.09887067,2658.8,2658.5,0.01480128]
[1646523315887,1.09887067,2658.8,2658.5,0.017995]
[1646523316289,1.54203181,2658.7,2658.5,0.017995]
[1646523316889,1.54203181,2658.7,2658.5,0.01480128]
[1646523317088,1.54203181,2658.7,2658.5,0.01799503]
[1646523317949,1.54203181,2658.7,2658.5,0.01480128]
[1646523318539,1.54203181,2658.7,2658.5,0.01789126]
[1646523318739,1.09887067,2658.8,2658.5,0.01789126]
[1646523319140,1.09887067,2658.8,2658.5,0.01480128]
[1646523319541,1.09887067,2658.8,2658.5,0.01789123]
[1646523320342,1.09887067,2658.8,2658.5,0.01480128]
[1646523320744,1.09887067,2658.8,2658.5,0.01789123]
[1646523321143,1.54199875,2658.7,2658.5,0.01789123]
[1646523321543,1.54199875,2658.7,2658.5,0.01480128]
[1646523321784,1.54199875,2658.7,2658.5,0.01789898]
[1646523322884,1.54199875,2658.7,2658.5,0.01480128]
[1646523323085,1.54199875,2658.7,2658.5,0.01789898]
[1646523323488,1.54117715,2658.7,2658.5,0.01789898]
[1646523323984,1.54117715,2658.7,2658.5,0.01480128]
[1646523324185,1.54117715,2658.7,2658.5,0.01789898]
[1646523325192,1.54117715,2658.7,2658.5,0.01480128]
[1646523325449,1.54117715,2658.7,2658.5,0.01791391]
[1646523326441,1.54117715,2658.7,2658.5,0.01480128]
[1646523326642,1.54117715,2658.7,2658.5,0.01791391]
[1646523327642,1.54117715,2658.7,2658.5,0.01480128]
[1646523327844,1.54117715,2658.7,2658.5,0.01791391]
[1646523328850,0.00740807,2658.8,2658.5,0.01480128]
[1646523329045,0.00740807,2658.8,2658.5,0.0179124]
[1646523329493,0.00740807,2658.8,2658.7,1.02576875]
[1646523330496,0.00740807,2658.8,2658.7,1.41507003]
[1646523330795,0.00740807,2658.8,2658.7,2.48147003]
[1646523331893,0.00740807,2658.8,2658.7,2.66947003]
[1646523332293,0.00740807,2658.8,2658.7,3.66947003]
[1646523332592,0.00740807,2658.8,2658.7,2.66947003]
[1646523332795,0.00740807,2658.8,2658.7,3.48147003]
[1646523333039,0.00740807,2658.8,2658.7,2.10697003]
[1646523333240,0.00740807,2658.8,2658.7,2.04057003]
[1646523333438,0.00740807,2658.8,2658.7,1.04057003]
[1646523334239,0.00740807,2658.8,2658.7,0.01480128]
[1646523335141,1.21287752,2658.8,2658.7,0.01480128]
[1646523342144,0.00740807,2658.8,2658.7,0.01480128]
[1646523343345,0.00740807,2658.8,2658.7,1.93021083]
[1646523343549,0.00740807,2658.8,2658.7,3.22991083]
[1646523343946,0.00740807,2658.8,2658.7,4.22991083]
[1646523344587,0.00823428,2658.8,2658.7,4.22991083]
[1646523345690,0.00674672,2658.8,2658.7,4.22991083]
[1646523346290,0.00674672,2658.8,2658.7,4.76991083]
[1646523347592,0.00674672,2658.8,2658.7,4.76380083]
[1646523348241,0.00674672,2658.8,2658.7,4.75758778]
[1646523349447,0.00674672,2658.8,2658.7,4.38308778]
[1646523349643,0.00674672,2658.8,2658.7,2.91788778]
[1646523349840,0.00674672,2658.8,2658.7,0.94288823]
[1646523350042,0.00674672,2658.8,2658.7,1.94288823]
[1646523350342,0.00674672,2658.8,2658.7,0.94288823]
[1646523351448,0.00674672,2658.8,2658.7,1.85619261]
[1646523352801,0.00674672,2658.8,2658.7,1.85371438]
[1646523354803,0.00674672,2658.8,2658.7,1.89686022]
[1646523360800,0.00674672,2658.8,2658.7,0.98355584]
[1646523360998,0.00674672,2658.8,2658.7,0.04314584]
[1646523362195,1.06631684,2658.8,2658.7,0.04314584]
[1646523364143,1.06631684,2658.8,2658.6,0.00309924]
[1646523364956,1.21083174,2658.3,2658.2,0.00096]
[1646523365144,1.21083174,2658.3,2658.0,0.00096]
[1646523365344,1.21083174,2658.3,2657.9,0.0188103]
[1646523365958,3.5,2658.2,2657.9,0.0188103]
[1646523366348,3.5,2658.2,2658.0,0.00310663]
[1646523366795,1.21083174,2658.3,2658.0,0.00310663]
[1646523367293,1.21083174,2658.3,2657.9,0.0188103]
[1646523367499,1.21083174,2658.3,2658.0,0.0031066]
[1646523368407,1.21083174,2658.3,2657.9,0.0188103]
[1646523369099,1.2112,2658.7,2657.9,0.9595003]
[1646523369295,1.2112,2658.7,2657.9,0.9604603]
[1646523369494,1.2112,2658.7,2657.9,0.8604603]
[1646523369897,1.2112,2658.7,2658.2,0.00310175]
[1646523370550,0.94077246,2658.6,2658.2,0.00310175]
[1646523370748,0.94077246,2658.6,2658.0,0.96931223]
[1646523371146,0.94077246,2658.6,2658.3,0.00310166]
[1646523372048,0.94077246,2658.6,2658.0,0.96931223]
[1646523372248,0.94077246,2658.6,2657.9,0.8604603]
[1646523372447,0.94077246,2658.6,2658.3,0.00316612]
[1646523373349,0.94077246,2658.6,2657.9,0.8604603]
[1646523373547,0.94077246,2658.6,2658.3,0.00322842]
[1646523374502,0.94077246,2658.6,2657.9,0.8604603]
[1646523374702,0.94077246,2658.6,2658.3,0.00322842]
[1646523375702,0.94077246,2658.6,2657.9,0.8604603]
[1646523375903,0.94077246,2658.6,2658.3,0.00315769]
[1646523376903,0.94077246,2658.6,2657.9,0.8604603]
[1646523377104,0.94077246,2658.6,2658.3,0.00308648]
[1646523378146,0.94077246,2658.6,2657.9,0.8604603]
[1646523378346,0.94077246,2658.6,2658.3,0.00308648]
[1646523379246,0.94077246,2658.6,2657.9,0.8604603]
[1646523379651,0.94077246,2658.6,2658.3,0.00309361]
[1646523380250,4.44077246,2658.6,2658.3,0.00309361]
[1646523380455,4.44077246,2658.6,2657.9,0.8604603]
[1646523380752,0.94077246,2658.6,2658.3,0.0031008]
[1646523381798,0.94077246,2658.6,2657.9,0.7604603]
[1646523381999,0.94077246,2658.6,2658.3,0.0031008]
[1646523382801,0.94077246,2658.6,2657.9,0.7604603]
[1646523383200,0.94077246,2658.6,2658.3,0.00310008]
[1646523384004,0.94077246,2658.6,2657.9,0.7604603]
[1646523384201,0.94077246,2658.6,2658.3,0.00309936]
[1646523384902,0.94077246,2658.6,2657.9,0.67595894]
[1646523385302,0.94077246,2658.6,2657.9,0.66355966]
[1646523386249,1.2112,2658.7,2657.9,0.66355966]
[1646523386450,1.2112,2658.7,2657.9,1.03805966]
[1646523386848,1.2112,2658.7,2657.9,1.57805966]
[1646523387549,1.2112,2658.7,2658.3,1.17817033]
[1646523387749,0.00674672,2658.8,2658.3,1.17817033]
[1646523388252,0.00674672,2658.8,2658.3,2.11872033]
[1646523388647,1.16201789,2658.9,2658.3,2.11872033]
[1646523388850,5.5364,2659.2,2658.3,2.49322033]
[1646523389051,2.8178,2659.2,2658.4,0.00096]
[1646523389293,2.8178,2659.2,2658.4,1.99136]
[1646523389496,0.188,2659.6,2658.6,0.3745]
[1646523389699,2.75762245,2660.1,2658.8,0.3745]
[1646523389700,0.188,2660.0,2658.8,0.3745]
[1646523389896,1.12048613,2659.9,2659.2,1.0095861]
[1646523393245,1.12048613,2659.9,2659.1,0.94016]
[1646523393453,1.12048613,2659.9,2659.0,2.88031]
[1646523394147,1.12048613,2659.9,2659.0,1.88031]
[1646523394348,1.12048613,2659.9,2659.2,1.16402661]
[1646523396450,1.12048613,2659.9,2659.0,2.88031]
[1646523396694,1.12048613,2659.9,2658.9,1.57635689]
[1646523397096,1.12048613,2659.9,2658.9,0.57635689]
[1646523398197,0.91142655,2659.5,2658.9,1.69719301]
[1646523398998,0.91142655,2659.5,2658.9,1.59719301]
[1646523400097,0.91142655,2659.5,2659.0,0.94029]
[1646523400546,1.2208,2659.8,2659.0,0.94029]
[1646523401349,3.53191317,2660.1,2659.0,1.85479]
[1646523401546,4.72456666,2660.1,2659.0,1.85479]
[1646523402046,4.72145349,2660.1,2659.0,1.85479]
[1646523402554,4.72456674,2660.1,2659.0,1.85479]
[1646523403245,4.72145349,2660.1,2659.0,1.85479]
[1646523403547,4.72456523,2660.1,2659.0,1.85479]
[1646523403751,4.72456523,2660.1,2659.0,5.11661555]
[1646523403947,4.72456523,2660.1,2659.0,1.85479]
[1646523404197,4.72456523,2660.1,2659.0,6.11681243]
[1646523404400,4.72456523,2660.1,2659.0,1.85479]
[1646523404596,4.72145349,2660.1,2659.0,6.11659847]
[1646523404797,4.72456465,2660.1,2659.0,6.11659847]
[1646523405397,4.72456465,2660.1,2659.0,2.85479]
[1646523405603,4.72456465,2660.1,2659.0,2.48029]
[1646523405804,4.72145349,2660.1,2659.0,1.48029]
[1646523406002,4.72456465,2660.1,2659.0,1.48029]
[1646523406306,0.3745,2660.0,2659.0,1.48029]
[1646523406502,0.3745,2660.0,2659.0,0.94029]
[1646523406703,0.3745,2660.0,2658.9,2.59719301]
[1646523406905,0.3745,2660.0,2658.9,1.59719301]
[1646523407104,1.85439697,2660.0,2658.9,1.59719301]
[1646523407302,3.5,2659.9,2658.9,1.59719301]
[1646523407504,3.8745,2659.9,2658.9,0.47635689]
[1646523410949,3.8745,2659.9,2659.0,0.94029]
[1646523411150,0.86854298,2659.3,2659.0,0.94029]
[1646523411553,0.86854298,2659.3,2658.9,0.47635689]
[1646523412391,0.86854298,2659.3,2659.0,0.94028]
[1646523412997,1.221,2659.8,2659.0,0.94028]
[1646523415646,2.09954032,2659.8,2659.0,0.94028]
[1646523420902,1.221,2659.8,2659.0,0.94028]
[1646523424657,6.57542469,2659.8,2658.9,0.37635689]
[1646523424856,6.57542469,2659.8,2658.6,0.188]
[1646523425053,6.57542469,2659.8,2658.5,4.24872]
[1646523425054,5.98565638,2659.8,2658.5,4.24872]
[1646523425451,3.07542469,2659.8,2658.5,4.24872]
[1646523425651,3.07542469,2659.8,2658.5,4.6159538]
[1646523426050,1.17674166,2659.2,2658.6,0.87928681]
[1646523427898,1.17674166,2659.2,2658.7,0.94035]
[1646523428300,4.4357,2659.7,2658.8,3.5]
[1646523428501,4.4357,2659.7,2659.0,1.88034]
[1646523428701,1.5189,2659.7,2659.0,1.88034]
[1646523429501,2.47735246,2659.7,2659.0,1.88034]
[1646523432054,2.47735246,2659.7,2659.0,5.38034]
[1646523432253,2.47735246,2659.7,2659.0,6.38034]
[1646523432854,2.47735246,2659.7,2659.0,2.88034]
[1646523433055,2.47735246,2659.7,2659.0,1.88034]
[1646523433254,2.47735246,2659.7,2659.0,2.88034]
[1646523433458,2.47735246,2659.7,2659.0,1.88034]
[1646523434054,1.221,2659.8,2659.0,5.38034]
[1646523434300,1.221,2659.8,2659.0,6.38034]
[1646523434702,1.21945689,2659.8,2659.0,6.38034]
[1646523435303,1.1634927,2659.7,2659.0,6.38034]
[1646523435502,1.1634927,2659.7,2659.0,2.88034]
[1646523435703,1.1634927,2659.7,2659.0,5.38034]
[1646523435903,1.1634927,2659.7,2659.0,6.38034]
[1646523437609,1.1634927,2659.7,2659.0,2.88034]
[1646523438451,1.21945689,2659.8,2659.0,6.75484]
[1646523438650,1.21945689,2659.8,2659.0,5.75484]
[1646523438850,1.21945689,2659.8,2659.0,2.88034]
[1646523439451,1.21945689,2659.8,2659.0,6.38034]
[1646523439650,1.21945689,2659.8,2659.0,1.88034]
[1646523439850,1.21945689,2659.8,2659.0,2.88034]
[1646523440255,1.21945689,2659.8,2659.0,2.874181]
[1646523440451,1.21945689,2659.8,2659.0,6.374181]
[1646523440650,1.21945689,2659.8,2659.0,5.374181]
[1646523440851,1.21945689,2659.8,2659.0,6.374181]
[1646523441353,1.21945689,2659.8,2659.0,2.874181]
[1646523442002,1.21945689,2659.8,2659.0,6.374181]
[1646523443004,1.21945689,2659.8,2659.0,6.37009091]
[1646523443201,1.21945689,2659.8,2659.0,2.87009091]
[1646523443901,1.21945689,2659.8,2659.0,6.37009091]
[1646523444106,1.224201,2659.8,2659.0,5.37009091]
[1646523444306,0.009513,2659.7,2659.0,6.37009091]
[1646523444506,0.01425711,2659.7,2659.0,6.37009091]
[1646523445554,0.01425711,2659.7,2659.0,2.87009091]
[1646523445753,0.01425711,2659.7,2659.0,1.87009091]
[1646523446051,0.01425711,2659.7,2659.0,2.87009091]
[1646523446252,0.01425711,2659.7,2659.0,1.87009091]
[1646523446455,0.01425711,2659.7,2659.0,2.87009091]
[1646523446855,0.01425711,2659.7,2659.0,1.87009091]
[1646523447055,0.01425711,2659.7,2659.0,2.87009091]
[1646523447255,0.01425711,2659.7,2659.0,1.87009091]
[1646523447455,0.01425711,2659.7,2659.0,2.87009091]
[1646523447857,0.01425711,2659.7,2659.0,1.87009091]
[1646523449206,0.01425711,2659.7,2659.0,5.37009091]
[1646523449596,0.01425711,2659.7,2659.4,1.11773712]
[1646523450006,0.01425711,2659.7,2659.5,3.5]
[1646523450205,0.01425711,2659.7,2659.5,5.04]
[1646523450503,0.00310037,2660.1,2659.5,1.8434]
[1646523450709,0.00310037,2660.1,2659.6,4.43998]
[1646523451003,0.00310037,2660.1,2659.6,4.97998]
[1646523451204,0.00310037,2660.1,2659.6,5.97998]
[1646523451408,1.5409928,2660.6,2659.6,5.97998]
[1646523451604,0.00310062,2660.1,2659.6,1.0]
[1646523451804,0.00310062,2660.1,2659.5,0.3034]
[1646523452004,0.00310062,2660.1,2659.4,6.36980763]
[1646523452605,1.5409928,2660.5,2659.4,6.36980763]
[1646523452804,0.00310057,2660.1,2659.4,6.36980763]
[1646523453249,1.19199632,2660.0,2659.4,6.36980763]
[1646523454251,1.19199632,2660.0,2659.4,6.18190763]
[1646523454651,1.19199632,2660.0,2659.4,2.11773712]
[1646523454853,1.19199632,2660.0,2659.3,1.0]
[1646523455052,1.19199632,2660.0,2659.3,1.57577124]
[1646523455760,1.19199632,2660.0,2659.1,1.4314]
[1646523455761,1.56649632,2660.0,2659.1,1.4314]
[1646523455956,0.89192877,2659.2,2658.9,0.188]
[1646523456556,0.89192877,2659.2,2658.6,0.188]
[1646523460755,0.89092877,2659.2,2658.6,0.188]
[1646523461358,0.89092877,2659.2,2658.5,0.5561938]
[1646523461755,0.89092877,2659.2,2658.5,0.00096]
[1646523462857,1.02014907,2658.7,2658.5,0.00096]
[1646523463057,1.02014907,2658.7,2658.4,0.94046]
[1646523464302,1.02014907,2658.7,2658.2,0.19240929]
[1646523464504,1.02014907,2658.7,2658.2,0.00344929]
[1646523464700,1.02014907,2658.7,2658.1,1.88093]
[1646523465000,0.00157276,2658.2,2658.1,2.87742145]
[1646523465200,0.00157276,2658.2,2658.1,1.87742145]
[1646523465401,0.00157276,2658.2,2658.1,2.87742145]
[1646523466605,0.00157276,2658.2,2658.1,1.87742145]
[1646523466806,0.00157276,2658.2,2658.1,2.87742145]
[1646523467006,0.00157276,2658.2,2658.1,1.87742145]
[1646523467210,0.00157276,2658.2,2658.1,2.87742145]
[1646523467411,0.00157276,2658.2,2658.1,1.87742145]
[1646523468261,0.00157276,2658.6,2658.1,1.87742145]
[1646523469661,0.00157276,2658.6,2658.1,1.88097097]
[1646523469863,0.00698485,2658.4,2658.1,1.88097097]
[1646523470262,0.00698485,2658.4,2658.1,2.06897097]
[1646523470666,0.00698485,2658.4,2658.1,2.06542145]
[1646523470866,0.00698485,2658.4,2658.1,1.88097091]
[1646523471065,6.91530717,2659.6,2658.1,1.87229991]
[1646523471272,1.72966631,2659.5,2658.2,0.00096]
[1646523471466,3.5,2659.4,2658.2,0.00096]
[1646523471708,3.5,2659.4,2658.4,0.94046]
[1646523472299,4.41442591,2659.4,2658.6,1.06210508]
[1646523472708,2.7855,2659.6,2658.6,1.06210508]
[1646523472907,2.7855,2659.6,2658.8,0.94032]
[1646523474103,3.65402101,2659.6,2658.8,0.94032]
[1646523474303,3.65402101,2659.6,2659.0,1.21739961]
[1646523475554,3.65402101,2659.6,2658.8,0.94032]
[1646523475953,3.65402101,2659.6,2658.6,3.43705982]
[1646523476154,3.65402101,2659.6,2658.6,2.43705982]
[1646523476353,3.65402101,2659.6,2658.6,6.93705982]
[1646523476558,3.65402101,2659.6,2658.6,6.93622244]
[1646523476756,3.65402101,2659.6,2658.7,0.99616011]
[1646523482403,3.65402101,2659.6,2658.8,3.5]
[1646523482804,3.65402101,2659.6,2658.8,4.5]
[1646523483251,3.65402101,2659.6,2658.8,1.0]
[1646523483451,3.65402101,2659.6,2658.7,4.49616011]
[1646523483651,3.65402101,2659.6,2658.7,5.49616011]
[1646523484557,2.7855,2659.6,2658.9,0.94027]
[1646523484758,2.7855,2659.6,2658.9,1.81427]
[1646523485859,1.19158868,2659.4,2658.9,1.81427]
[1646523488803,1.19158868,2659.4,2658.9,0.94027]
[1646523490757,1.19158868,2659.4,2658.4,2.1569]
[1646523490758,3.5,2659.3,2658.4,1.1569]
[1646523490955,3.5,2659.3,2658.1,3.39075209]
[1646523491357,3.5,2659.3,2658.1,3.39387323]
[1646523492158,3.5,2659.3,2658.1,3.39075209]
[1646523492355,3.5,2659.3,2658.1,4.39387303]
[1646523492753,1.07708359,2658.7,2658.1,3.85387303]
[1646523492954,1.07708359,2658.7,2658.3,0.188]
[1646523493655,4.6436,2659.2,2658.3,0.188]
[1646523493854,4.6436,2659.2,2658.3,0.18896]
[1646523495004,1.1436,2659.2,2658.3,0.18896]
[1646523495606,4.6436,2659.2,2658.3,0.18896]
[1646523496207,1.1436,2659.2,2658.3,0.18896]
[1646523496407,4.6436,2659.2,2658.3,0.18896]
[1646523496608,1.1436,2659.2,2658.3,0.18896]
[1646523496808,0.97666511,2659.0,2658.3,0.18896]
[1646523497809,0.97557474,2659.0,2658.3,0.18896]
[1646523500352,4.6436,2659.2,2658.4,0.94046]
[1646523500555,1.1436,2659.2,2658.4,0.94046]
[1646523501459,0.98442452,2659.2,2658.4,0.94046]
[1646523502305,1.05339819,2659.1,2658.4,1.94854482]
[1646523504402,1.05339819,2659.1,2658.4,0.94046]
[1646523509304,4.55339819,2659.1,2658.4,0.94046]
[1646523509503,4.55339819,2659.1,2658.3,0.18896]
[1646523511110,1.05339819,2659.1,2658.3,0.18896]
[1646523511311,1.05339819,2659.1,2658.4,0.94046]
[1646523515663,1.05339819,2659.1,2658.4,0.93426188]
[1646523516264,0.98442452,2659.2,2658.4,0.93426188]
[1646523516724,0.98442452,2659.2,2658.7,1.88028]
[1646523516913,2.7926,2659.6,2658.7,2.89348]
[1646523517411,2.7926,2659.6,2658.7,3.89348]
[1646523517612,2.7926,2659.6,2659.1,1.00399833]
[1646523517813,1.218,2659.6,2659.1,0.94019]
[1646523518414,1.218,2659.6,2658.7,3.89348]
[1646523519112,0.91252876,2659.4,2658.7,4.79034739]
[1646523519313,0.91252876,2659.4,2658.7,2.91006739]
[1646523519514,0.91252876,2659.4,2658.7,1.91006739]
[1646523519714,0.91252876,2659.4,2658.7,2.47056852]
[1646523519912,0.91252876,2659.4,2658.7,1.47056852]
[1646523527014,1.218,2659.6,2658.7,1.47056852]
[1646523527616,1.218,2659.6,2658.9,0.94027]
[1646523531359,1.218,2659.6,2658.7,1.47056852]
[1646523532006,0.9820532,2659.3,2658.7,1.47056852]
[1646523532607,0.9820532,2659.3,2658.6,2.88058]
[1646523532608,0.9820532,2659.3,2658.6,0.56514788]
[1646523532806,3.5,2659.2,2658.6,0.56514788]
[1646523534206,1.11268946,2658.8,2658.6,0.56514788]
[1646523538867,1.1114953,2658.8,2658.6,0.56514788]
[1646523540404,1.1843,2659.2,2658.6,0.56514788]
[1646523540607,3.5,2659.1,2658.6,0.56514788]
[1646523540807,1.1843,2659.2,2658.6,0.56514788]
[1646523541608,0.96162787,2659.1,2658.6,0.56514788]
[1646523546577,4.46162787,2659.1,2658.6,0.56514788]
[1646523547215,0.96162787,2659.1,2658.6,0.56514788]
[1646523547913,4.46162787,2659.1,2658.6,0.56514788]
[1646523548312,0.96162787,2659.1,2658.6,0.56514788]
[1646523548713,4.46162787,2659.1,2658.6,0.56514788]
[1646523549014,0.96162787,2659.1,2658.6,0.56514788]
[1646523552771,1.1843,2659.2,2658.6,0.56514788]
[1646523553170,1.1843,2659.2,2658.6,0.56307638]
[1646523553571,1.1843,2659.2,2658.6,0.56100052]
[1646523553973,1.1843,2659.2,2658.6,2.62562464]
[1646523554214,1.1843,2659.2,2658.6,3.62562464]
[1646523554421,1.1843,2659.2,2658.6,4.86532464]
[1646523554614,1.1843,2659.2,2658.6,4.86390246]
[1646523556218,1.1843,2659.2,2658.6,5.05190246]
[1646523557963,1.1843,2659.2,2659.0,1.22943205]
[1646523558161,1.00710627,2659.7,2659.0,1.22943205]
[1646523569065,1.00710627,2659.7,2658.7,0.18896]
[1646523569519,3.5,2659.6,2658.7,0.18896]
[1646523570320,1.15440928,2659.3,2658.7,0.18896]
[1646523570920,1.15440928,2659.3,2658.7,0.13896]
[1646523572323,1.15440928,2659.3,2658.7,0.00096]
[1646523572324,3.5,2659.2,2658.7,0.00096]
[1646523572528,3.5,2659.2,2658.6,0.55957834]
[1646523572723,1.00340448,2658.7,2658.6,0.55957834]
[1646523574166,1.00340448,2658.7,2658.6,0.50957834]
[1646523574367,0.90340448,2658.7,2658.6,0.50957834]
[1646523575466,0.90340448,2658.7,2658.6,0.51161365]
[1646523581965,1.1687,2659.1,2658.6,0.51161365]
[1646523584716,1.23085098,2658.8,2658.6,0.51161365]
[1646523590172,1.1687,2659.1,2658.6,0.51161365]
[1646523593715,2.22184407,2659.1,2658.6,1.45200365]
[1646523594714,1.1687,2659.1,2658.6,1.45200365]
[1646523595318,1.1687,2659.1,2658.6,0.51161365]
[1646523596974,1.15881962,2658.8,2658.6,0.51161365]
[1646523597173,1.1573873,2658.8,2658.6,0.51161365]
[1646523597575,1.1687,2659.1,2658.6,0.51161365]
[1646523598577,2.10347528,2659.1,2658.6,0.51161365]
[1646523606814,1.1687,2659.1,2658.6,0.51161365]
[1646523607214,3.5,2659.5,2658.6,0.51161365]
[1646523607416,4.6829,2659.7,2658.6,0.51257365]
[1646523607616,1.54150954,2659.6,2658.6,0.51257365]
[1646523607815,1.14582055,2659.4,2658.6,0.50635213]
[1646523612668,4.6829,2659.7,2658.6,0.50635213]
[1646523612868,1.5415331,2659.6,2658.6,0.50635213]
[1646523613070,1.5415331,2659.6,2658.6,1.44673213]
[1646523613672,2.68957165,2659.6,2658.9,1.21500345]
[1646523613871,1.14803855,2659.6,2658.6,1.44673213]
[1646523614071,1.14803855,2659.6,2659.0,0.00203531]
[1646523615929,1.54151837,2659.5,2659.0,0.00203531]
[1646523616329,5.04151837,2659.5,2659.0,0.00203531]
[1646523616530,3.5,2659.5,2659.0,0.00203531]
[1646523617130,3.5,2659.5,2658.8,0.00203531]
[1646523618769,1.54157224,2659.4,2658.8,0.00203531]
[1646523619773,1.14803855,2659.6,2658.8,0.00203531]
[1646523623027,1.1829,2659.7,2658.9,0.94026]
[1646523623232,1.1829,2659.7,2658.9,1.48026]
[1646523623426,1.1829,2659.7,2659.0,0.00203531]
[1646523624230,1.1829,2659.7,2659.1,1.20905705]
[1646523625462,1.1829,2659.7,2659.1,3.08924705]
[1646523625663,1.1829,2659.7,2659.1,4.08924705]
[1646523626466,1.1829,2659.7,2659.1,2.20905705]
[1646523626668,1.1829,2659.7,2659.2,0.00203531]
[1646523630026,3.5,2659.6,2659.2,0.00203531]